bitfinex-derivatives/quotes_SOLF0:USTF0_20241120
["timestamp","ask_amount","ask_price","bid_price","bid_amount"]
[1732109997029,2.0996,237.88,237.84,10.16799879]
[1732109997234,2.534,237.94,237.84,10.16799879]
[1732109997541,2.534,237.94,237.76,16.99807148]
[1732109997542,2.0997,237.88,237.81,10.16799879]
[1732109998236,2.66,237.89,237.81,10.16799879]
[1732109998542,10.16799879,237.87,237.72,22.6640953]
[1732109998752,10.16799879,237.87,237.73,0.7720622]
[1732109998933,10.16799879,237.84,237.7,5.66602382]
[1732109999137,5.1198,237.83,237.7,5.66602382]
[1732109999334,5.1198,237.83,237.71,0.772083]
[1732109999538,5.1198,237.83,237.67,10.16799879]
[1732109999742,10.16799879,237.8,237.68,0.77218338]
[1732110000138,2.1005,237.79,237.68,0.77218338]
[1732110000340,3.6508,237.83,237.7,10.16799879]
[1732110000642,2.66,237.82,237.71,0.77214953]
[1732110000844,2.66,237.82,237.69,16.28885052]
[1732110001143,2.66,237.82,237.7,0.77216211]
[1732110001338,2.1004,237.8,237.69,16.28885052]
[1732110001534,2.1004,237.8,237.7,1.54433958]
[1732110001746,2.1004,237.8,237.7,0.77216938]
[1732110001939,2.1004,237.79,237.7,0.77216938]
[1732110002237,2.66,237.82,237.7,0.77216938]
[1732110002638,2.4598,237.83,237.7,0.77216938]
[1732110002639,2.1003,237.81,237.7,0.77216938]
[1732110002835,2.4598,237.83,237.71,0.77216195]
[1732110003232,2.66,237.82,237.71,0.77216195]
[1732110004140,2.66,237.82,237.7,0.77216938]
[1732110004343,2.1005,237.78,237.7,0.77216938]
[1732110004546,2.66,237.82,237.7,0.77216938]
[1732110005341,16.28885052,237.77,237.7,0.77216938]
[1732110005547,2.66,237.76,237.7,0.77216938]
[1732110006038,2.1011,237.71,237.57,16.28885052]
[1732110006337,2.66,237.76,237.56,18.94885052]
[1732110006734,16.28885052,237.81,237.64,16.28885052]
[1732110006936,4.7604,237.8,237.68,16.28885052]
[1732110007536,2.66,237.8,237.68,16.28885052]
[1732110008337,2.1007,237.77,237.64,16.28885052]
[1732110009141,2.1009,237.75,237.62,2.66]
[1732110009446,2.66,237.74,237.62,18.94885052]
[1732110009640,5.2414,237.73,237.62,18.94885052]
[1732110009845,5.2414,237.73,237.65,0.77223588]
[1732110010046,5.2414,237.73,237.62,16.28885052]
[1732110010253,2.1011,237.72,237.63,0.77234525]
[1732110010943,5.2414,237.73,237.63,0.77234525]
[1732110011347,5.2414,237.73,237.57,2.66]
[1732110011348,21.53025052,237.73,237.64,0.77234525]
[1732110011548,21.53025052,237.73,237.54,16.28885052]
[1732110011742,2.1016,237.66,237.54,16.28885052]
[1732110011940,21.53025052,237.73,237.55,0.77243491]
[1732110012342,21.53025052,237.73,237.56,0.77244984]
[1732110012343,1.2781,237.72,237.56,0.77244984]
[1732110012546,1.2781,237.72,237.55,0.77243491]
[1732110012547,1.2781,237.72,237.57,0.77244984]
[1732110012741,1.2781,237.72,237.58,0.77244984]
[1732110013146,1.2781,237.72,237.56,0.77244984]
[1732110013342,1.2781,237.72,237.59,0.77244984]
[1732110013542,2.1017,237.66,237.55,0.77243491]
[1732110013743,2.66,237.66,237.6,0.77251626]
[1732110013947,1.2781,237.72,237.56,0.77251626]
[1732110014253,2.66,237.69,237.57,0.77251626]
[1732110014445,2.66,237.69,237.58,0.77251626]
[1732110014645,16.28885052,237.67,237.59,0.77251626]
[1732110014947,16.28885052,237.63,237.55,0.77243491]
[1732110015149,16.28885052,237.59,237.56,0.77254158]
[1732110015348,2.66,237.58,237.41,32.03961273]
[1732110015647,2.66,237.58,237.42,2.12716242]
[1732110015845,16.28885052,237.55,237.4,22.6640953]
[1732110016048,2.66,237.58,237.32,16.28885052]
[1732110016049,16.28885052,237.51,237.32,16.28885052]
[1732110016253,2.66,237.5,237.32,16.28885052]
[1732110016442,2.66,237.5,237.33,0.77279059]
[1732110016646,16.28885052,237.47,237.34,0.77279059]
[1732110016844,16.28885052,237.47,237.35,0.77279059]
[1732110017254,16.28885052,237.47,237.36,0.77279059]
[1732110017552,16.28885052,237.43,237.37,0.77279059]
[1732110017848,16.28885052,237.39,237.38,0.77279059]
[1732110018245,2.66,237.42,237.26,2.15155456]
[1732110018443,16.28885052,237.4,237.27,0.77279059]
[1732110018643,16.28885052,237.4,237.28,0.77279059]
[1732110018842,16.28885052,237.4,237.29,0.77279059]
[1732110019046,16.28885052,237.4,237.3,0.77279059]
[1732110019247,16.28885052,237.32,237.1,1.80969926]
[1732110019448,16.28885052,237.32,237.02,2.13641461]
[1732110019449,18.94885052,237.32,237.11,2.66]
[1732110019744,18.94885052,237.32,237.09,16.28885052]
[1732110019950,18.94885052,237.32,237.12,2.66]
[1732110020145,18.94885052,237.32,237.13,2.09747532]
[1732110020350,16.28885052,237.28,237.12,2.66]
[1732110020553,18.94885052,237.32,237.13,17.06241163]
[1732110020847,18.94885052,237.32,237.14,0.77356111]
[1732110021051,18.94885052,237.32,237.15,0.77356111]
[1732110021247,16.28885052,237.28,237.16,0.77356111]
[1732110021450,16.28885052,237.24,237.17,0.77356111]
[1732110021654,16.28885052,237.2,237.07,0.77356111]
[1732110021851,16.28885052,237.2,236.97,16.28885052]
[1732110022044,2.66,237.23,237.0,2.66]
[1732110022045,16.28885052,237.16,237.0,2.66]
[1732110022245,2.66,237.15,236.95,2.66]
[1732110022449,2.66,237.15,236.95,18.94885052]
[1732110022646,2.66,237.15,236.95,21.07463791]
[1732110022950,2.66,237.15,236.97,16.28885052]
[1732110023151,2.66,237.15,236.98,0.77414328]
[1732110023353,2.66,237.15,236.95,4.78578739]
[1732110023354,2.66,237.15,236.99,0.77414328]
[1732110023552,2.66,237.15,237.0,0.77414328]
[1732110023754,2.66,237.15,237.01,0.77414328]
[1732110023951,2.66,237.15,237.02,0.77414328]
[1732110024147,2.66,237.15,237.03,0.77414328]
[1732110024447,2.66,237.15,237.04,0.77414328]
[1732110024655,2.66,237.15,237.05,0.77414328]
[1732110024848,2.66,237.15,237.06,0.77414328]
[1732110025049,2.66,237.15,237.07,0.77414328]
[1732110025348,16.28885052,237.2,237.08,0.77414328]
[1732110025649,2.5047,237.22,237.09,0.77414328]
[1732110025852,2.5047,237.22,237.1,0.77414328]
[1732110026052,2.5047,237.22,237.11,0.77414328]
[1732110026348,5.1847,237.22,237.06,2.68]
[1732110026546,2.5047,237.22,237.06,2.68]
[1732110026855,2.5047,237.22,237.06,4.75738737]
[1732110027049,2.5047,237.22,237.1,16.28885052]
[1732110027246,1.3097,237.22,237.1,16.28885052]
[1732110027452,1.3097,237.22,237.11,0.77396112]
[1732110028548,1.3097,237.22,237.07,0.77396112]
[1732110028747,17.59855052,237.22,237.07,0.77396112]
[1732110028953,16.28885052,237.18,237.03,0.77396112]
[1732110029159,2.68,237.17,236.99,0.77407495]
[1732110029352,16.28885052,237.14,237.0,0.77407495]
[1732110029554,2.68,237.17,236.95,2.68]
[1732110029555,16.28885052,237.1,236.95,2.68]
[1732110029754,2.68,237.09,236.96,1.54868427]
[1732110029952,2.68,237.09,236.97,0.77435245]
[1732110030452,16.28885052,237.06,236.96,0.77433182]
[1732110030848,16.28885052,237.02,236.96,0.77433182]
[1732110031054,18.96885052,237.02,236.96,0.77433182]
[1732110031452,16.28885052,236.98,236.72,42.88]
[1732110031659,16.28885052,236.98,236.81,16.28885052]
[1732110031854,1.2552,237.01,236.81,16.28885052]
[1732110032560,1.2552,237.01,236.82,0.77464875]
[1732110032753,1.2552,237.01,236.83,4.7830694]
[1732110033059,1.2552,237.01,236.83,2.68]
[1732110033359,16.28885052,236.96,236.84,1.54924184]
[1732110033551,16.28885052,236.96,236.85,0.77463295]
[1732110034158,16.28885052,236.96,236.84,0.77460889]
[1732110034360,16.28885052,236.96,236.81,2.68]
[1732110034554,16.28885052,236.96,236.82,0.77482897]
[1732110034962,2.1075,237.0,236.82,0.77482897]
[1732110034963,16.28885052,236.92,236.82,0.77482897]
[1732110035259,16.28885052,236.92,236.78,2.68]
[1732110035460,16.28885052,236.92,236.79,0.77490899]
[1732110036158,16.28885052,236.92,236.8,0.77490899]
[1732110036357,16.28885052,236.92,236.81,0.77490899]
[1732110036662,1.3096,236.91,236.82,0.77498839]
[1732110036865,1.3096,236.91,236.73,16.28885052]
[1732110036866,16.28885052,236.87,236.73,2.68]
[1732110037063,16.28885052,236.87,236.74,1.55010506]
[1732110037064,1.2701,236.86,236.74,1.55010506]
[1732110037257,1.2701,236.86,236.75,0.77506248]
[1732110037565,16.28885052,236.83,236.74,0.77504258]
[1732110037758,16.28885052,236.83,236.75,0.77527778]
[1732110037958,16.28885052,236.83,236.74,0.77504258]
[1732110038357,2.68,236.85,236.75,0.77528816]
[1732110038862,1.2701,236.86,236.75,0.77528816]
[1732110039059,1.2701,236.86,236.76,0.77528816]
[1732110039261,1.2701,236.86,236.77,0.77528816]
[1732110039564,2.68,237.05,236.78,0.77528816]
[1732110039756,2.5548,236.94,236.79,3.45528816]
[1732110039960,2.5548,236.94,236.79,2.68]
[1732110040265,2.68,237.05,236.8,0.77511714]
[1732110040462,16.28885052,237.01,236.81,0.77511714]
[1732110040656,16.28885052,237.01,236.79,18.96885052]
[1732110040657,16.28885052,237.01,236.82,0.77511714]
[1732110040862,16.28885052,237.01,236.83,17.06396766]
[1732110041159,16.28885052,236.97,236.84,0.77511714]
[1732110041362,16.28885052,236.97,236.85,0.77511714]
[1732110041564,16.28885052,236.97,236.86,0.77511714]
[1732110041760,16.28885052,236.97,236.87,0.77511714]
[1732110041960,16.28885052,236.97,236.88,0.77511714]
[1732110042161,16.28885052,236.97,236.89,0.77511714]
[1732110042361,16.28885052,236.97,236.9,0.77511714]
[1732110042563,16.28885052,236.97,236.86,2.68]
[1732110042760,16.28885052,236.93,236.87,0.77483005]
[1732110043459,16.28885052,236.93,236.84,2.68]
[1732110043659,16.28885052,236.93,236.85,0.7748858]
[1732110044561,16.28885052,236.97,236.85,0.7748858]
[1732110044766,16.28885052,236.97,236.86,0.7748858]
[1732110044971,16.28885052,236.97,236.87,0.7748858]
[1732110045265,16.28885052,236.97,236.88,0.7748858]
[1732110045464,16.28885052,236.97,236.85,0.7748858]
[1732110045661,2.1072,237.03,236.89,0.7748858]
[1732110045662,16.28885052,237.01,236.89,0.7748858]
[1732110045862,16.28885052,237.01,236.9,3.4548858]
[1732110046060,16.28885052,237.01,236.91,0.7748858]
[1732110046758,2.4956,237.04,236.91,0.7748858]
[1732110046965,2.4956,237.04,236.9,2.68]
[1732110047265,2.4956,237.04,236.91,0.77474249]
[1732110047659,4.6027,237.04,236.9,2.68]
[1732110047865,4.6027,237.04,236.92,0.77473051]
[1732110048067,4.6027,237.04,236.83,16.28885052]
[1732110048262,2.4956,237.04,236.84,2.68]
[1732110048469,2.4956,237.04,236.85,0.77473654]
[1732110048669,2.4956,237.04,236.86,0.77473654]
[1732110048966,2.4956,237.04,236.87,0.77473654]
[1732110049164,2.4956,237.04,236.88,0.77473654]
[1732110049360,2.4956,237.04,236.89,0.77473654]
[1732110049559,2.4956,237.04,236.9,3.45473654]
[1732110049763,2.4956,237.04,236.91,0.77473654]
[1732110050265,2.4956,237.04,236.92,0.77473654]
[1732110050465,2.4956,237.04,236.91,16.28885052]
[1732110050763,2.4956,237.04,236.92,0.77463292]
[1732110050973,2.4956,237.04,236.93,0.77463292]
[1732110051263,2.4956,237.04,236.94,3.45463292]
[1732110051566,2.4956,237.04,236.95,0.77463292]
[1732110051765,2.4956,237.04,236.83,16.28885052]
[1732110051967,16.28885052,237.01,236.84,0.7746773]
[1732110052162,16.28885052,237.01,236.85,3.4546773]
[1732110052370,16.28885052,237.01,236.86,0.7746773]
[1732110052572,16.28885052,237.01,236.87,0.7746773]
[1732110052767,16.28885052,237.01,236.88,0.7746773]
[1732110053068,16.28885052,237.01,236.89,0.7746773]
[1732110053273,16.28885052,237.01,236.86,0.7746773]
[1732110053467,2.4956,237.04,236.87,0.7746773]
[1732110053764,2.4956,237.04,236.89,16.28885052]
[1732110053962,2.4956,237.04,236.9,0.77466799]
[1732110054163,2.4956,237.04,236.91,2.68]
[1732110054366,2.4956,237.04,236.91,0.77466799]
[1732110054568,2.4956,237.04,236.92,3.45466799]
[1732110054771,2.4956,237.04,236.93,0.77466799]
[1732110054969,2.4956,237.04,236.93,0.77471421]
[1732110056271,18.78445052,237.04,236.93,2.68]
[1732110056967,18.78445052,237.04,236.79,16.28885052]
[1732110057267,16.28885052,237.0,236.8,3.45487807]
[1732110057473,16.28885052,237.0,236.79,16.28885052]
[1732110057773,16.28885052,237.0,236.8,3.4548554]
[1732110057969,16.28885052,237.0,236.8,2.68]
[1732110058162,16.28885052,237.0,236.81,0.77486135]
[1732110058464,16.28885052,237.0,236.82,0.77486135]
[1732110058667,16.28885052,237.0,236.83,0.77486135]
[1732110058970,16.28885052,237.0,236.84,0.77486135]
[1732110059167,16.28885052,237.0,236.85,0.77486135]
[1732110059367,16.28885052,237.0,236.8,2.68]
[1732110059368,16.28885052,237.0,236.86,3.45486135]
[1732110059673,2.68,237.03,236.87,3.45486135]
[1732110059973,4.7872,237.03,236.88,0.77486135]
[1732110060266,16.28885052,237.12,236.87,2.68]
[1732110060267,232.699905,237.26,236.94,16.28885052]
[1732110060471,2.4832,237.09,236.95,3.45486135]
[1732110060677,16.28885052,237.03,236.87,2.68]
[1732110060975,1.2624,237.02,236.88,3.45473177]
[1732110061274,1.2624,237.02,236.89,0.77473177]
[1732110061466,1.2624,237.02,236.9,0.77473177]
[1732110061669,1.2624,237.02,236.91,0.77473177]
[1732110061872,1.2624,237.02,236.88,2.68]
[1732110062165,3.3697,237.02,236.89,0.7747851]
[1732110062370,1.2624,237.02,236.89,0.7747851]
[1732110062671,2.1075,236.99,236.89,0.7747851]
[1732110062868,1.2624,237.02,236.89,0.7747851]
[1732110063366,1.2624,237.02,236.88,2.68]
[1732110063568,1.2624,237.02,236.9,0.77468079]
[1732110063769,1.2624,237.02,236.91,0.77468079]
[1732110063969,1.2624,237.02,236.92,0.77468079]
[1732110064272,1.2624,237.02,236.93,0.77468079]
[1732110064472,1.2624,237.02,236.94,2.66]
[1732110064775,1.2624,237.02,236.95,2.66]
[1732110067674,1.2624,237.02,236.91,2.66]
[1732110069084,1.2624,237.02,236.92,0.77469454]
[1732110069476,2.4832,237.09,236.95,16.28885052]
[1732110069883,3.774,237.09,236.96,0.77458764]
[1732110070180,3.774,237.09,236.97,2.66]
[1732110070783,3.774,237.09,236.98,0.77447996]
[1732110071084,3.774,237.09,236.97,2.66]
[1732110071682,2.4832,237.09,236.98,0.77447536]
[1732110072079,2.4832,237.09,236.99,3.43447536]
[1732110072275,2.4832,237.09,237.0,0.77447536]
[1732110072581,2.4832,237.09,237.01,2.66]
[1732110073379,2.4832,237.09,236.95,16.28885052]
[1732110073684,2.4832,237.09,236.96,2.66]
[1732110073882,16.28885052,237.08,236.96,2.66]
[1732110074079,18.94885052,237.08,236.86,16.28885052]
[1732110074284,18.94885052,237.08,236.87,3.43462175]
[1732110074483,18.94885052,237.08,236.88,0.77462175]
[1732110074686,2.107,237.05,236.88,0.77462175]
[1732110074983,16.28885052,237.04,236.88,0.77462175]
[1732110075679,18.94885052,237.08,236.89,16.28885052]
[1732110075882,18.94885052,237.08,236.9,0.77462175]
[1732110076487,18.94885052,237.08,236.91,2.66]
[1732110076683,16.28885052,237.04,236.91,2.66]
[1732110077888,18.94885052,237.08,236.91,2.66]
[1732110078588,2.4832,237.09,236.94,16.28885052]
[1732110079392,0.87252,237.1,236.98,16.28885052]
[1732110079693,0.87252,237.1,236.99,2.66]
[1732110080781,0.87252,237.1,237.0,2.66]
[1732110081386,0.87252,237.1,237.01,2.66]
[1732110082391,0.87252,237.1,236.94,16.28885052]
[1732110082583,0.87252,237.1,236.95,2.66]
[1732110082782,0.87252,237.1,236.98,16.28885052]
[1732110083186,0.87252,237.1,236.96,2.66]
[1732110083392,0.87252,237.1,236.97,2.66]
[1732110083993,0.87252,237.1,236.98,2.66]
[1732110085590,0.87252,237.1,236.98,4.75270055]
[1732110087289,0.87252,237.1,237.0,16.28885052]
[1732110087890,0.87252,237.1,237.04,16.28885052]
[1732110088090,2.5193,237.15,237.05,2.66]
[1732110088395,1.3146,237.15,237.05,2.66]
[1732110088993,1.211,237.24,237.08,16.28885052]
[1732110090299,1.211,237.24,237.09,0.77396038]
[1732110090998,1.211,237.24,237.12,16.28885052]
[1732110091293,16.28885052,237.37,237.16,16.28885052]
[1732110091494,16.28885052,237.37,237.17,2.66]
[1732110091495,2.6148,237.32,237.17,2.66]
[1732110091691,2.6148,237.32,237.17,4.76729156]
[1732110092192,2.6148,237.32,237.2,16.28885052]
[1732110092393,2.6148,237.32,237.21,0.77353404]
[1732110092794,2.6148,237.32,237.22,2.66]
[1732110092992,2.6148,237.32,237.23,2.66]
[1732110094300,0.79191,237.3,237.23,2.66]
[1732110095201,0.79191,237.3,237.16,18.37699651]
[1732110095500,0.79191,237.3,237.17,3.43367449]
[1732110095698,0.79191,237.3,237.18,0.77367449]
[1732110096204,0.79191,237.3,237.19,2.66]
[1732110096797,0.79191,237.3,237.2,2.66]
[1732110096996,0.79191,237.3,237.16,16.28885052]
[1732110097301,0.79191,237.3,237.17,2.66]
[1732110098498,0.79191,237.3,237.02,30.32]
[1732110098499,16.28885052,237.29,237.08,16.28885052]
[1732110098695,2.1053,237.24,237.09,2.66]
[1732110098898,2.66,237.28,237.09,2.66]
[1732110099098,1.2172,237.27,237.1,2.88520361]
[1732110099399,1.2172,237.27,237.12,16.28885052]
[1732110099704,1.2172,237.27,237.13,0.77395672]
[1732110099897,1.2172,237.27,237.16,16.28885052]
[1732110100094,0.79191,237.3,237.17,2.66]
[1732110100700,0.79191,237.3,237.2,16.28885052]
[1732110102704,0.79191,237.3,237.21,0.77363197]
[1732110104704,0.79191,237.3,237.2,16.28885052]
[1732110105096,0.79191,237.3,237.21,2.66]
[1732110106198,0.79191,237.3,237.22,0.77362615]
[1732110106398,0.79191,237.3,237.24,16.28885052]
[1732110107705,0.79191,237.3,237.21,2.66]
[1732110108900,0.79191,237.3,237.2,16.28885052]
[1732110109104,0.79191,237.3,237.21,2.66]
[1732110109303,0.79191,237.3,237.16,16.28885052]
[1732110109603,0.79191,237.3,237.17,3.43373181]
[1732110109801,0.79191,237.3,237.17,2.66]
[1732110110100,0.79191,237.3,237.18,0.77368574]
[1732110110802,0.79191,237.3,237.2,16.28885052]
[1732110110996,0.79191,237.3,237.21,0.77368574]
[1732110112302,2.6148,237.32,237.21,0.77368574]
[1732110112497,2.6148,237.32,237.22,0.77362996]
[1732110112695,2.6148,237.32,237.23,2.66]
[1732110113697,2.6148,237.32,237.2,16.28885052]
[1732110113902,2.6148,237.32,237.21,3.43362838]
[1732110114204,2.6148,237.32,237.22,2.66]
[1732110115105,4.7194,237.32,237.22,2.66]
[1732110116402,2.1047,237.31,237.22,2.66]
[1732110116805,2.6148,237.32,237.22,2.66]
[1732110117300,2.1047,237.31,237.22,2.66]
[1732110117608,16.28885052,237.3,237.19,2.66]
[1732110117805,16.28885052,237.3,237.12,18.44580572]
[1732110118008,16.28885052,237.3,237.13,3.4338704]
[1732110118202,16.28885052,237.3,237.13,2.66]
[1732110118903,16.28885052,237.3,237.12,16.28885052]
[1732110119103,16.28885052,237.3,237.08,16.50240052]
[1732110119309,16.28885052,237.26,237.09,0.77398115]
[1732110119504,2.1056,237.21,237.1,2.66]
[1732110119810,1.2139,237.2,237.1,2.66]
[1732110120013,2.4958,237.2,237.1,2.66]
[1732110120508,2.4958,237.2,237.08,16.50240052]
[1732110120701,2.4958,237.2,237.11,2.66]
[1732110123911,2.4958,237.2,237.12,0.77393993]
[1732110124310,2.4958,237.2,237.13,2.66]
[1732110125006,16.28885052,237.6,237.13,2.66]
[1732110125210,1.2233,237.27,237.14,0.77384937]
[1732110125411,1.2233,237.27,237.13,2.66]
[1732110125609,1.2233,237.27,237.14,3.43385473]
[1732110125811,1.2233,237.27,237.14,2.66]
[1732110126410,1.2233,237.27,237.15,2.66]
[1732110127016,2.1052,237.26,237.15,2.66]
[1732110127208,1.2233,237.27,237.15,2.66]
[1732110127409,2.1051,237.26,237.15,2.66]
[1732110127714,1.2233,237.27,237.15,2.66]
[1732110128020,2.1052,237.25,237.15,2.66]
[1732110128211,1.2095,237.24,237.15,2.66]
[1732110128614,11.44022072,237.24,237.15,2.66]
[1732110130810,10.23072072,237.24,237.15,2.66]
[1732110131009,10.23072072,237.24,237.1,2.1243176]
[1732110131207,10.23072072,237.24,237.11,2.66]
[1732110131406,10.23072072,237.24,237.12,10.23072072]
[1732110131614,1.2233,237.27,237.15,10.23072072]
[1732110132615,1.2233,237.27,237.18,10.23072072]
[1732110132814,1.2233,237.27,237.19,2.66]
[1732110134214,1.2233,237.27,237.2,2.66]
[1732110136619,11.45402072,237.27,237.19,2.66]
[1732110136814,13.55912072,237.27,237.19,2.66]
[1732110137008,11.45402072,237.27,237.19,2.66]
[1732110137215,11.45402072,237.27,237.16,2.66]
[1732110137410,10.23072072,237.24,237.16,2.66]
[1732110140815,12.33602072,237.24,237.16,2.66]
[1732110141413,10.23072072,237.24,237.16,2.66]
[1732110143420,11.45402072,237.27,237.16,2.66]
[1732110144021,13.55912072,237.27,237.16,2.66]
[1732110144819,11.45402072,237.27,237.16,2.66]
[1732110146519,1.2233,237.27,237.16,2.66]
[1732110147718,227.89625479,237.51,237.38,38.0]
[1732110147921,2.5905,237.7,237.5,10.23072072]
[1732110148119,1.3234,237.78,237.39,45.83]
[1732110148120,10.23072072,237.88,237.67,10.23072072]
[1732110148319,10.23072072,237.8,237.6,2.86]
[1732110148520,10.23072072,237.75,237.6,10.23072072]
[1732110148823,10.23072072,237.75,237.62,5.77302186]
[1732110149016,10.23072072,237.75,237.64,5.77302186]
[1732110149221,10.23072072,237.75,237.63,5.77302186]
[1732110149417,10.23072072,237.75,237.64,5.71106654]
[1732110149718,10.23072072,237.75,237.63,5.77302186]
[1732110149919,4.1834,237.78,237.65,5.77302186]
[1732110150125,1.3234,237.78,237.66,8.42144195]
[1732110150423,1.3234,237.78,237.67,8.42144195]
[1732110150625,1.3234,237.78,237.68,14.17426769]
[1732110150824,1.3234,237.78,237.69,6.71991805]
[1732110151023,1.3234,237.78,237.7,1.05082986]
[1732110151326,1.3234,237.78,237.71,1.05082986]
[1732110151525,1.3234,237.78,237.7,5.77302186]
[1732110151721,1.3234,237.78,237.71,5.65816862]
[1732110151924,1.3234,237.78,237.69,5.77302186]
[1732110152227,1.3234,237.78,237.7,6.70829062]
[1732110152527,1.3234,237.78,237.71,12.47237756]
[1732110152827,1.3234,237.78,237.72,5.64841602]
[1732110153021,1.3234,237.78,237.71,5.77302186]
[1732110153220,1.3234,237.78,237.72,5.64779549]
[1732110153422,1.3234,237.78,237.73,5.64779549]
[1732110153623,1.3234,237.78,237.74,5.63807025]
[1732110153929,1.3234,237.78,237.75,5.63807025]
[1732110154125,1.3234,237.78,237.73,5.77302186]
[1732110154326,1.3234,237.78,237.74,5.6362139]
[1732110154530,1.3234,237.78,237.75,5.6362139]
[1732110154726,16.29703611,237.79,237.66,1.68146477]
[1732110154727,16.29703611,237.79,237.67,5.77302186]
[1732110154923,16.29703611,237.79,237.68,6.43612056]
[1732110155129,2.86,237.8,237.69,6.43538491]
[1732110155428,2.86,237.8,237.7,6.43538491]
[1732110155625,2.5562,237.81,237.71,6.42868724]
[1732110155824,2.5562,237.81,237.76,5.77302186]
[1732110156029,2.5562,237.81,237.77,6.42868724]
[1732110156332,2.5562,237.81,237.78,6.42518213]
[1732110156527,2.86,237.9,237.8,5.77302186]
[1732110156727,2.86,237.9,237.81,1.05086757]
[1732110157027,16.29703611,237.88,237.74,1.68079347]
[1732110157230,16.29703611,237.88,237.75,1.05054177]
[1732110157529,16.29703611,237.88,237.76,1.05054177]
[1732110157825,2.86,237.9,237.77,1.05054177]
[1732110158129,2.86,237.9,237.78,6.16205995]
[1732110158327,2.86,237.9,237.79,5.11117615]
[1732110158535,2.86,237.9,237.78,5.77302186]
[1732110158825,2.86,237.9,237.79,1.05044245]
[1732110159025,2.86,237.9,237.75,1.68070794]
[1732110159231,2.86,237.9,237.76,1.05044232]
[1732110159423,2.86,237.9,237.77,1.05044232]
[1732110159629,4.9595,237.9,237.78,1.05044232]
[1732110159828,4.9595,237.9,237.79,1.05044232]
[1732110160033,4.9595,237.9,237.8,1.05044232]
[1732110160228,4.9595,237.9,237.81,1.05044232]
[1732110160432,1.2757,237.91,237.82,1.0503455]
[1732110160733,1.2757,237.91,237.78,7.4537298]
[1732110160734,2.86,237.93,237.83,1.0503455]
[1732110160931,2.86,237.93,237.8,7.4537298]
[1732110161131,2.86,237.96,237.82,5.77302186]
[1732110161327,2.86,237.96,237.83,11.82281878]
[1732110161627,2.86,237.96,237.85,5.77302186]
[1732110161833,2.4923,237.95,237.84,10.77257104]
[1732110162032,2.4923,237.95,237.81,46.67222746]
[1732110162033,16.29703611,237.92,237.81,23.27510715]
[1732110162225,16.29703611,237.88,237.82,1.68019101]
[1732110162432,2.86,237.87,237.77,19.98134544]
[1732110162626,19.15703611,237.86,237.78,4.99334763]
[1732110162832,19.15703611,237.86,237.72,2.86]
[1732110163426,19.15703611,237.86,237.73,4.89675429]
[1732110163627,2.86,237.86,237.72,2.86]
[1732110163829,2.86,237.86,237.73,4.8944134]
[1732110164331,2.86,237.86,237.74,4.8944134]
[1732110164531,2.86,237.89,237.74,4.8944134]
[1732110164726,2.86,237.89,237.72,20.36208529]
[1732110165034,2.86,237.89,237.72,2.86]
[1732110165430,16.29703611,237.86,237.68,16.29703611]
[1732110165931,1.321,237.85,237.68,19.15703611]
[1732110167334,2.1003,237.81,237.71,2.1011]
[1732110167534,1.2375,237.8,237.71,2.1011]
[1732110168736,1.2375,237.8,237.68,19.15703611]
[1732110168934,1.2375,237.8,237.72,2.101]
[1732110170538,1.2375,237.8,237.68,19.15703611]
[1732110171031,1.2375,237.8,237.68,16.29703611]
[1732110172036,1.2375,237.8,237.7,2.1012]
[1732110172932,1.2375,237.8,237.68,16.29703611]
[1732110173231,1.2375,237.8,237.71,2.1011]
[1732110174032,1.2375,237.8,237.67,2.86]
[1732110174033,1.2375,237.8,237.66,2.1015]
[1732110174231,16.29703611,237.78,237.63,2.86]
[1732110174438,1.2738,237.79,237.63,1.05072119]
[1732110174439,16.29703611,237.74,237.63,1.05072119]
[1732110174638,2.86,237.73,237.59,1.05072119]
[1732110174838,16.29703611,237.7,237.55,1.05072119]
[1732110175034,16.29703611,237.7,237.54,2.86]